bitfinex-derivatives/quotes_ETHF0:USTF0_20251225
["timestamp","ask_amount","ask_price","bid_price","bid_amount"]
[1766706345871,3.7995,2892.3,2890.6,0.17307]
[1766706346374,0.3455,2892.3,2890.7,0.17306]
[1766706346573,0.3455,2892.3,2890.8,0.17306]
[1766706348082,3.7995,2892.3,2890.8,0.17306]
[1766706348382,3.454,2892.1,2890.8,0.17306]
[1766706348577,3.454,2892.1,2890.1,0.1731]
[1766706348982,3.454,2892.1,2890.0,0.00357665]
[1766706348983,3.454,2892.1,2890.2,3.8256889]
[1766706349178,3.454,2892.1,2890.6,0.17307]
[1766706349780,0.3455,2892.3,2890.9,0.17305]
[1766706350081,0.3455,2892.3,2890.1,3.83985276]
[1766706350479,0.00518215,2892.4,2891.6,0.17301]
[1766706350685,0.00377398,2892.9,2891.6,0.17301]
[1766706351581,0.00518215,2892.5,2891.6,0.17301]
[1766706351786,3.454,2893.5,2892.0,0.00518215]
[1766706352090,0.97278633,2893.4,2892.0,0.00518215]
[1766706352292,0.12396566,2893.9,2892.0,0.17817215]
[1766706352587,0.97389502,2893.8,2892.0,0.17817215]
[1766706352886,0.97389502,2893.7,2892.0,0.17817215]
[1766706353183,0.97389502,2893.6,2892.0,0.17817215]
[1766706353383,0.97478625,2893.5,2892.1,3.61292094]
[1766706353583,0.00414985,2893.8,2892.1,0.00280961]
[1766706353784,0.00518215,2893.2,2892.1,0.00280961]
[1766706353979,0.00414985,2893.8,2892.1,0.00280961]
[1766706354180,0.00414985,2893.8,2892.5,0.17296]
[1766706356082,0.00518215,2893.4,2892.5,0.17296]
[1766706356285,0.00518215,2893.4,2892.2,8.77087703]
[1766706356286,0.00518215,2893.4,2892.2,3.82287703]
[1766706356478,0.00518215,2893.4,2892.1,0.00280961]
[1766706357990,0.9734187,2893.3,2892.1,0.00280961]
[1766706358290,0.00518215,2893.4,2892.1,0.00280961]
[1766706360288,3.454,2893.2,2890.7,0.17306]
[1766706360589,3.454,2893.3,2891.3,0.17303]
[1766706361090,0.0036,2893.2,2891.3,0.17303]
[1766706361290,0.0036,2893.2,2891.3,0.00288669]
[1766706361586,0.17294,2892.9,2890.2,0.1731]
[1766706361777,3.454,2892.7,2890.2,0.17309]
[1766706361978,3.454,2892.7,2890.3,3.97052825]
[1766706362387,3.454,2892.7,2890.4,0.17308]
[1766706362585,0.00518215,2891.8,2891.2,0.00518215]
[1766706362786,0.00518215,2891.8,2890.4,0.17600584]
[1766706363790,0.00518215,2891.8,2890.8,0.00518215]
[1766706364992,3.454,2893.0,2890.8,0.00518215]
[1766706365195,3.454,2893.0,2890.9,3.83312431]
[1766706365394,0.0036,2893.2,2891.2,0.17304]
[1766706365887,0.0036,2893.2,2890.9,3.83312431]
[1766706366093,0.00518215,2892.3,2891.0,0.17305]
[1766706366889,0.00518215,2892.3,2891.1,3.66704522]
[1766706368488,0.00518215,2892.3,2891.1,3.84008522]
[1766706368688,0.0036,2893.2,2891.3,0.17303]
[1766706369287,0.0036,2893.2,2891.4,0.17303]
[1766706369791,0.00518215,2892.6,2891.4,0.17303]
[1766706370390,0.00518215,2892.6,2890.8,0.00518215]
[1766706370792,0.00518215,2892.6,2890.9,3.62929198]
[1766706371401,0.00518215,2892.6,2890.8,0.00518215]
[1766706372499,0.00518215,2892.6,2890.4,0.00292584]
[1766706372500,0.17299,2892.1,2890.4,0.00292584]
[1766706373392,0.17299,2892.1,2891.0,0.00518215]
[1766706373593,3.454,2892.0,2890.4,0.00292584]
[1766706374203,3.454,2891.8,2890.4,0.00292584]
[1766706374387,3.454,2892.0,2890.4,0.00292584]
[1766706374592,3.454,2892.0,2890.9,0.00518215]
[1766706375400,3.454,2891.9,2890.9,0.00518215]
[1766706375793,0.0037,2891.8,2890.9,0.00518215]
[1766706377497,0.00518215,2892.6,2890.9,0.00518215]
[1766706378603,3.454,2893.3,2891.4,0.17302]
[1766706379000,0.12366783,2894.1,2891.6,0.17301]
[1766706379302,0.12366783,2894.1,2891.7,3.97764746]
[1766706379603,0.00518215,2893.0,2892.5,0.00518215]
[1766706379901,0.00518215,2893.0,2892.5,0.00799454]
[1766706380404,0.12366783,2894.1,2892.5,0.00799454]
[1766706381299,0.00518215,2893.4,2892.5,0.00799454]
[1766706381499,0.00518215,2893.4,2890.9,0.17305]
[1766706382002,0.00414985,2893.8,2891.9,0.17299]
[1766706382203,0.00414985,2893.8,2892.4,1.37637861]
[1766706382397,0.00414985,2893.8,2892.4,0.17602845]
[1766706382705,0.00414985,2893.8,2892.4,0.00306845]
[1766706383098,0.00518215,2893.4,2892.8,0.00518215]
[1766706383510,0.00518215,2893.4,2891.2,0.17304]
[1766706384200,0.00518215,2893.4,2891.3,0.86938008]
[1766706384592,0.00518215,2893.4,2892.1,0.00518215]
[1766706388203,0.1728,2895.2,2892.8,0.17294]
[1766706388402,0.1728,2895.2,2892.5,1.20341861]
[1766706388403,2.11720949,2895.7,2893.0,0.17293]
[1766706388606,2.28997949,2895.7,2893.0,0.17293]
[1766706389010,2.11720949,2895.7,2893.0,0.17293]
[1766706389200,0.00518215,2894.6,2894.1,0.00518215]
[1766706389507,0.00518215,2894.6,2894.1,0.00773368]
[1766706390194,0.00518215,2894.6,2893.0,0.17293]
[1766706390400,0.00518215,2894.6,2892.3,0.17297]
[1766706390703,0.00518215,2894.6,2892.3,3.83688402]
[1766706391109,0.00518215,2894.6,2893.2,0.00518215]
[1766706394200,0.00518215,2894.6,2893.2,0.17810215]
[1766706394806,0.00518215,2894.6,2893.3,0.17291]
[1766706395105,6.94903284,2895.7,2893.6,0.17289]
[1766706395110,3.454,2895.6,2893.6,0.17289]
[1766706395500,0.00324196,2895.7,2893.6,0.17289]
[1766706396206,0.00518215,2894.9,2893.6,0.17289]
[1766706397910,0.00324196,2895.7,2893.8,1.20341861]
[1766706398105,0.00324196,2895.7,2894.2,0.17287]
[1766706398812,0.00518215,2895.2,2894.7,0.00518215]
[1766706399004,0.00518215,2895.2,2894.7,0.0094898]
[1766706399508,0.00518215,2895.2,2893.5,0.17291]
[1766706400609,0.00518215,2895.2,2894.1,0.00518215]
[1766706401307,0.00518215,2895.2,2893.5,0.0026042]
[1766706401915,3.454,2895.0,2893.5,0.0026042]
[1766706402302,0.00518215,2895.2,2894.0,0.00518215]
[1766706404211,3.45918215,2895.2,2894.0,0.00518215]
[1766706405415,0.00518215,2895.2,2894.0,0.00518215]
[1766706409731,3.62683,2894.9,2893.5,0.0026042]
[1766706410026,3.454,2894.4,2892.5,0.17298]
[1766706410221,0.17285,2894.6,2891.5,10.143]
[1766706410222,8.735,2894.6,2892.8,0.17296]
[1766706410624,0.00518215,2894.0,2893.4,0.00518215]
[1766706410930,0.00518215,2894.0,2893.4,0.00375736]
[1766706411121,0.00518215,2894.0,2892.2,0.17299]
[1766706411822,0.00518215,2894.0,2892.8,0.00518215]
[1766706412019,3.45918215,2894.0,2892.8,0.0096514]
[1766706412424,0.00518215,2894.0,2892.8,0.0096514]
[1766706412624,0.17284,2894.9,2892.8,0.0096514]
[1766706413631,0.00518215,2894.1,2892.8,0.0096514]
[1766706413825,0.00518215,2894.1,2892.8,0.1826114]
[1766706414024,0.17284,2894.9,2892.8,0.1826114]
[1766706414220,3.454,2895.4,2893.0,0.17295]
[1766706414431,3.454,2895.2,2893.0,0.17295]
[1766706415133,0.00518215,2894.4,2893.0,0.17295]
[1766706415436,6.019,2895.1,2893.0,0.17295]
[1766706415631,3.454,2895.4,2893.4,0.17292]
[1766706415825,3.454,2895.4,2893.5,0.17292]
[1766706416022,4.23824196,2895.7,2893.5,0.17292]
[1766706416023,0.00324196,2895.7,2893.9,0.17289]
[1766706416232,1.20341861,2896.7,2893.7,1.20341861]
[1766706416429,0.17265,2898.0,2895.3,1.37622861]
[1766706416634,1.635,2898.4,2895.5,0.17279]
[1766706416828,1.635,2898.4,2895.8,1.20341861]
[1766706417230,1.20341861,2898.3,2895.6,3.84775499]
[1766706417536,0.00518215,2897.2,2895.6,0.00305733]
[1766706419738,0.00518215,2897.2,2896.1,0.00518215]
[1766706420239,0.00518215,2897.2,2896.1,0.00018215]
[1766706421534,1.20341861,2896.9,2895.6,0.00305733]
[1766706421733,0.1727,2897.1,2895.6,0.00305733]
[1766706421926,3.454,2897.0,2895.6,0.00305733]
[1766706422135,0.00518215,2897.2,2895.6,0.00305733]
[1766706423741,0.00518215,2897.2,2896.1,0.00518215]
[1766706423935,0.00518215,2897.2,2895.6,0.00305733]
[1766706424238,4.65741861,2897.0,2895.6,0.00305733]
[1766706424640,0.1727,2897.1,2895.6,0.00305733]
[1766706426334,0.00518215,2897.2,2895.6,0.00305733]
[1766706426532,0.00518215,2897.2,2895.7,3.63146621]
[1766706426759,0.00275347,2898.3,2895.9,0.17277]
[1766706426950,0.00275347,2898.3,2897.0,1.20341861]
[1766706427148,0.17256,2899.5,2897.0,1.20341861]
[1766706427442,0.17256,2899.5,2896.9,0.17271]
[1766706427634,4.65741861,2899.0,2896.2,0.17276]
[1766706427943,0.00518215,2898.5,2896.6,3.92608828]
[1766706428129,0.00824193,2898.5,2896.6,3.92608828]
[1766706428334,0.00824193,2898.5,2896.6,0.17273]
[1766706429346,0.00824193,2898.5,2895.9,0.28170183]
[1766706429643,0.18086193,2898.5,2896.0,3.6095616]
[1766706430136,0.00824193,2898.5,2895.9,3.6095616]
[1766706430337,3.46224193,2898.5,2896.2,0.17275]
[1766706431242,0.00824193,2898.5,2896.2,0.17275]
[1766706432738,0.00824193,2898.5,2896.3,3.80685247]
[1766706432939,0.00824193,2898.5,2896.5,0.17274]
[1766706433539,0.00824193,2898.5,2896.6,0.17273]
[1766706435047,0.00824193,2898.5,2896.7,3.60168056]
[1766706435237,0.00824193,2898.5,2896.7,3.77441056]
[1766706435647,0.00824193,2898.5,2896.7,0.17273]
[1766706435946,0.00824193,2898.5,2896.8,3.60576193]
[1766706436146,0.00824193,2898.5,2896.8,3.77847193]
[1766706436342,0.00824193,2898.5,2896.8,3.60576193]
[1766706436648,0.00824193,2898.5,2896.2,0.17275]
[1766706436847,0.00824193,2898.5,2896.5,4.919]
[1766706437744,0.00824193,2898.5,2896.6,3.64373453]
[1766706438844,0.00824193,2898.5,2896.5,0.17274]
[1766706439349,0.17263,2898.4,2896.1,4.918]
[1766706439738,0.00824193,2898.5,2896.4,0.17274]
[1766706440146,0.00024193,2898.5,2896.4,0.17274]
[1766706441039,0.00518215,2897.7,2897.2,0.00518215]
[1766706442848,0.00518215,2897.7,2896.0,3.371]
[1766706443850,0.00518215,2897.7,2895.9,0.17277]
[1766706445142,0.00518215,2897.7,2896.0,0.17277]
[1766706445343,0.00518215,2897.7,2896.0,4.09174693]
[1766706445751,0.00518215,2897.7,2896.0,0.17277]
[1766706447048,0.00518215,2897.7,2896.1,3.95383265]
[1766706447248,0.00518215,2897.7,2896.0,0.17277]
[1766706448350,0.00518215,2897.7,2895.6,0.00305733]
[1766706449348,0.17269,2897.4,2895.6,0.00305733]
[1766706449652,0.00518215,2897.7,2895.7,3.80469454]
[1766706450057,0.00518215,2897.7,2896.2,0.17275]
[1766706452155,0.00518215,2897.7,2895.6,0.00305733]
[1766706452359,0.00518215,2897.7,2895.7,3.791]
[1766706452661,0.00518215,2897.7,2895.7,7.54624685]
[1766706453855,0.00518215,2897.7,2895.8,0.17278]
[1766706455160,0.17785215,2897.7,2895.8,0.17278]
[1766706455361,0.17785215,2897.7,2895.6,0.00305733]
[1766706455362,0.00518215,2897.7,2895.6,0.00305733]
[1766706455660,0.17269,2897.3,2895.6,0.00305733]
[1766706455859,0.1727,2897.2,2895.6,0.00305733]
[1766706463464,0.17785215,2897.7,2895.7,0.17279]
[1766706463654,0.17785215,2897.7,2895.7,3.76532683]
[1766706463860,0.17785215,2897.7,2895.7,0.17279]
[1766706464661,0.00518215,2897.7,2895.9,0.17277]
[1766706464865,0.00518215,2897.7,2895.6,0.00305733]
[1766706464866,0.00518215,2897.7,2896.0,0.17277]
[1766706466466,0.00518215,2897.7,2896.1,0.17276]
[1766706467056,0.00518215,2897.7,2896.2,0.17275]
[1766706467253,0.00518215,2897.7,2896.3,0.17275]
[1766706467460,0.00024193,2898.5,2896.0,4.913]
[1766706467656,0.00024193,2898.5,2896.4,3.61690479]
[1766706467852,0.00024193,2898.5,2896.6,0.17273]
[1766706468458,0.00518215,2897.8,2897.3,0.00518215]
[1766706468857,0.00024193,2898.5,2897.3,0.00518215]
[1766706469757,0.00518215,2898.2,2897.3,0.00518215]
[1766706470663,0.00024193,2898.5,2897.3,0.00518215]
[1766706471366,0.00024193,2898.5,2897.3,0.17787215]
[1766706471571,3.454,2900.0,2897.5,0.17267]
[1766706471775,0.17252,2900.1,2897.7,0.17266]
[1766706472069,3.454,2900.4,2897.8,3.88964114]
[1766706472365,3.454,2900.4,2897.6,3.88964114]
[1766706472366,0.17252,2900.3,2897.6,0.17267]
[1766706472565,3.454,2900.4,2897.6,0.17267]
[1766706472767,0.00273357,2900.3,2898.7,0.00518215]
[1766706473871,0.00517312,2899.8,2898.7,0.00518215]
[1766706480683,0.17771312,2899.8,2898.7,0.00518215]
[1766706480868,0.17255,2899.7,2898.7,0.00518215]
[1766706481070,0.00517312,2899.8,2897.6,0.004452]
[1766706481384,0.00517312,2899.8,2897.8,0.17266]
[1766706481577,0.17257,2899.3,2897.7,3.75386605]
[1766706481772,0.17258,2899.2,2897.6,0.004452]
[1766706481971,0.17258,2899.2,2898.1,0.00517312]
[1766706482179,0.17258,2899.2,2897.6,0.004452]
[1766706482582,0.17258,2899.1,2897.6,0.004452]
[1766706484291,1.35795337,2899.2,2896.4,1.40219173]
[1766706484578,3.454,2899.1,2896.4,1.40219173]
[1766706484966,0.17261,2898.7,2896.4,0.17274]
[1766706485372,0.00517312,2897.8,2897.3,0.00517312]
[1766706485570,0.00819076,2897.8,2897.3,0.0093942]
[1766706487184,3.454,2900.7,2897.3,0.0093942]
[1766706487380,3.454,2899.2,2897.3,0.0093942]
[1766706487574,0.17259,2899.0,2897.3,0.0093942]
[1766706488175,0.00517312,2898.4,2897.3,0.0093942]
[1766706489979,0.1756246,2899.0,2897.3,0.0093942]
[1766706489980,0.0030346,2899.0,2897.3,0.0093942]
[1766706491183,0.00517312,2898.4,2897.3,0.0093942]
[1766706492381,0.17780312,2898.4,2897.3,0.0093942]
[1766706492574,0.17263,2898.3,2897.3,0.0093942]
[1766706492769,0.17264,2898.2,2896.0,0.17276]
[1766706493484,0.17266,2897.8,2895.8,1.26888906]
[1766706493679,3.454,2898.0,2895.8,1.26888906]
[1766706493882,0.17268,2897.5,2895.8,1.27139785]
[1766706494784,0.17268,2897.5,2895.8,0.00250879]
[1766706494985,0.00517312,2896.9,2895.8,0.00250879]
[1766706495174,0.008639,2896.9,2895.8,0.00250879]
[1766706499484,3.454,2897.7,2895.8,0.00250879]
[1766706500484,0.00517312,2897.0,2896.5,0.00517312]
[1766706502086,0.00517312,2897.0,2895.8,0.00250879]
[1766706522396,0.00517312,2897.0,2895.8,0.17528879]
[1766706522607,3.454,2897.5,2896.1,0.00517312]
[1766706523498,0.00517312,2897.1,2896.1,0.00517312]
[1766706525905,0.00374989,2897.7,2896.1,0.00517312]
[1766706526111,0.00374989,2897.7,2896.1,0.17793312]
[1766706526302,0.00374989,2897.7,2896.2,3.64526491]
[1766706526502,0.00374989,2897.7,2896.1,0.17793312]
[1766706527014,0.00517312,2897.2,2896.1,0.17793312]
[1766706529014,0.00374989,2897.7,2896.1,0.17793312]
[1766706529311,0.00374989,2897.7,2896.2,3.85313853]
[1766706530313,0.00374989,2897.7,2896.3,0.17275]
[1766706531214,0.00517312,2897.3,2896.3,0.17275]
[1766706531405,0.00374989,2897.7,2896.3,0.17275]
[1766706532408,0.00517312,2897.3,2896.3,0.17275]
[1766706532713,0.00374989,2897.7,2896.1,0.00517312]
[1766706533518,0.00341267,2897.2,2896.1,0.00517312]
[1766706535022,1.267e-05,2897.2,2896.1,0.17793312]
[1766706535722,1.267e-05,2897.2,2896.2,3.77297144]
[1766706536313,1.267e-05,2897.2,2896.1,0.17793312]
[1766706538722,1.267e-05,2897.2,2896.2,3.77194374]
[1766706539331,1.267e-05,2897.2,2896.4,0.17274]
[1766706539815,1.267e-05,2897.2,2896.5,0.17274]
[1766706540018,0.00374989,2897.7,2896.6,0.17273]
[1766706540223,3.454,2898.5,2896.8,0.17272]
[1766706540522,11.32242806,2899.4,2897.0,0.17271]
[1766706540722,1.37199806,2899.4,2897.0,0.17271]
[1766706541022,0.17258,2899.2,2897.9,0.00517312]
[1766706541327,0.17513095,2899.2,2897.9,0.00877954]
[1766706541620,3.454,2898.8,2897.0,0.17271]
[1766706542220,3.6266,2898.8,2896.4,1.41705358]
[1766706542416,0.00517311,2897.9,2897.3,0.00517312]
[1766706543022,0.00517311,2897.9,2896.6,4.901]
[1766706544132,0.00517311,2897.9,2897.0,0.00517312]
[1766706547618,0.00517311,2897.9,2896.4,1.24683491]
[1766706548725,0.00517311,2897.9,2896.9,0.00517312]
[1766706553832,3.454,2898.7,2896.9,0.00517312]
[1766706554633,0.1726,2898.8,2896.9,0.00517312]
[1766706554826,0.00517312,2898.1,2896.9,0.00517312]
[1766706556034,3.45917312,2898.1,2896.9,0.00517312]
[1766706557521,0.17265,2898.0,2896.9,0.00517312]
[1766706557928,3.62665,2898.0,2896.9,0.00517312]
[1766706559029,0.17265,2898.0,2896.9,0.00517312]
[1766706559333,0.00517312,2898.1,2896.9,0.00517312]
[1766706561841,0.17781312,2898.1,2896.9,0.00517312]
[1766706563442,0.00517312,2898.1,2896.9,0.00517312]
[1766706570440,0.17782312,2898.1,2896.9,0.00517312]
[1766706573950,0.00517312,2898.1,2896.9,0.00517312]
[1766706574742,0.17261,2898.7,2897.0,3.64212381]
[1766706574943,3.454,2898.9,2897.0,3.64212381]
[1766706575142,3.454,2898.9,2897.0,3.81483381]
[1766706575343,3.454,2898.9,2897.1,3.09601065]
[1766706575539,3.454,2898.9,2897.0,6.91084446]
[1766706575739,0.00517312,2898.2,2897.1,3.09601065]
[1766706576438,3.454,2899.1,2897.1,3.09601065]
[1766706576647,3.454,2899.1,2897.0,3.26872065]
[1766706576838,0.00255095,2899.2,2897.1,3.09601065]
[1766706577044,0.00255095,2899.2,2897.6,0.17267]
[1766706577649,0.00255095,2899.2,2897.2,7.98801065]
[1766706577836,0.00255095,2899.2,2897.2,8.16070065]
[1766706578042,0.00255095,2899.2,2897.3,3.26870065]
[1766706578234,0.00255095,2899.2,2897.5,0.17268]
[1766706578438,0.00255095,2899.2,2897.6,0.17267]
[1766706578645,0.00255095,2899.2,2897.6,4.06777577]
[1766706579539,0.00255095,2899.2,2897.6,3.89510577]
[1766706579743,3.62753,2900.0,2898.0,0.17265]
[1766706579952,3.62753,2900.0,2898.7,0.00517312]
[1766706580748,3.6300896,2900.0,2898.7,0.0089064]
[1766706580950,0.17254,2899.9,2898.7,0.0089064]
[1766706581152,0.17254,2899.9,2898.7,6.4e-06]
[1766706582047,0.00517312,2899.6,2899.0,0.00517312]
[1766706582447,0.0025596,2900.0,2899.0,0.00517312]
[1766706594157,0.17246,2901.1,2899.0,0.17775312]
[1766706594363,3.455,2901.4,2899.2,0.17257]
[1766706595057,3.455,2901.5,2899.2,0.17257]
[1766706595258,3.45839931,2901.5,2899.3,3.98911916]
[1766706595762,3.63083931,2901.5,2899.3,0.17257]
[1766706596162,0.17583931,2901.5,2899.3,0.17257]
[1766706596661,0.00339931,2901.5,2899.3,0.17257]
[1766706597251,0.00339931,2901.5,2899.0,0.00517312]
[1766706597457,3.455,2901.4,2899.0,0.00517312]
[1766706597659,0.17248,2901.0,2899.0,0.00517312]
[1766706598063,0.17248,2901.0,2899.1,3.8855791]
[1766706598258,3.455,2901.4,2899.2,0.17257]
[1766706598470,0.00339931,2901.5,2899.5,0.17256]
[1766706599169,0.17583931,2901.5,2899.5,0.17256]
[1766706600074,0.00339931,2901.5,2899.1,2.576]
[1766706600264,0.17247,2901.1,2899.0,0.00517312]
[1766706600470,0.17247,2901.1,2899.1,3.73148384]
[1766706600774,0.17248,2900.9,2899.0,0.00517312]
[1766706600975,0.17248,2900.8,2899.0,0.00517312]
[1766706601267,0.17249,2900.7,2899.0,0.00517312]
[1766706601467,0.17251,2900.5,2899.0,0.00517312]
[1766706601672,0.17252,2900.1,2899.0,0.00517312]
[1766706601876,3.455,2900.6,2898.7,6.4e-06]
[1766706602068,0.17254,2899.8,2898.7,6.4e-06]
[1766706602375,0.17256,2899.5,2897.5,1.25438897]
[1766706602867,7.27473188,2900.7,2898.2,0.00517312]
[1766706602868,3.455,2900.0,2898.2,0.00517312]
[1766706603069,0.17252,2900.2,2898.2,0.00517312]
[1766706603270,0.17248,2900.8,2898.2,0.17781312]
[1766706603570,0.1725,2900.5,2898.2,0.18061953]
[1766706604873,0.17251,2900.3,2898.2,0.18061953]
[1766706610276,0.17251,2900.3,2898.3,0.17263]
[1766706610775,0.17251,2900.3,2898.4,3.6674274]
[1766706611175,0.17252,2900.2,2898.2,0.00797953]
[1766706611879,0.17253,2900.0,2898.2,0.00797953]
[1766706613683,3.455,2900.0,2898.3,3.96733891]
[1766706613884,3.455,2900.0,2898.3,0.17263]
[1766706614072,3.455,2900.0,2898.2,0.00797953]
[1766706614686,0.17252,2900.1,2898.2,0.00797953]
[1766706615677,3.455,2900.5,2898.4,0.17262]
[1766706616487,0.17249,2900.6,2898.4,0.17262]
[1766706617072,0.17249,2900.6,2898.5,0.17262]
[1766706617277,0.17249,2900.6,2898.5,3.95262864]
[1766706617477,0.17249,2900.6,2898.5,0.17262]
[1766706618087,0.17257,2899.3,2898.2,0.00797953]
[1766706618385,0.00517312,2899.0,2896.7,0.17272]
[1766706618583,0.1726,2898.9,2896.7,0.44942711]
[1766706618890,0.1726,2898.9,2896.9,3.79985537]
[1766706619083,0.1726,2898.9,2896.7,0.17272]
[1766706619388,0.1726,2898.9,2897.5,0.00517312]
[1766706624191,0.00517312,2899.0,2897.5,0.00517312]
[1766706628987,0.17776312,2899.0,2897.5,0.00517312]
[1766706629298,0.1726,2898.9,2897.5,0.00517312]
[1766706632195,0.00517312,2899.0,2897.5,0.00517312]
[1766706632495,0.00517312,2899.0,2897.5,0.17785312]
[1766706632698,0.00517312,2899.0,2897.6,0.17267]
[1766706634498,0.00517312,2899.0,2897.5,0.00517312]
[1766706647508,0.00517312,2899.0,2897.6,3.74163657]
[1766706647899,0.00517312,2899.0,2897.6,3.91430657]
[1766706649203,0.00517312,2899.0,2897.8,0.17266]
[1766706649402,0.00395272,2899.3,2897.8,0.17266]
[1766706649602,0.00395272,2899.3,2897.9,3.67136375]
[1766706650010,0.00395272,2899.3,2897.9,4.878]
[1766706650507,0.00395272,2899.3,2897.9,5.05065]
[1766706650902,0.00395272,2899.3,2898.0,0.17265]
[1766706652408,0.00395272,2899.3,2898.1,3.09601065]
[1766706652711,0.00395272,2899.3,2898.1,7.0520224]
[1766706653004,3.455,2900.5,2898.1,7.0520224]
[1766706653209,3.455,2900.5,2899.0,0.00517312]
[1766706653510,3.6275,2900.5,2899.0,0.00517312]
[1766706654013,3.63046112,2900.5,2899.0,0.00925586]
[1766706658910,3.455,2900.4,2899.0,0.00925586]
[1766706660015,0.17546112,2900.5,2899.0,0.00925586]
[1766706664714,0.17252,2900.2,2899.0,0.00925586]
[1766706667313,0.00296112,2900.5,2899.0,0.00925586]
[1766706670518,0.00296112,2900.5,2899.0,0.18184586]
[1766706671117,0.00296112,2900.5,2899.1,0.17258]
[1766706671318,0.00296112,2900.5,2899.2,0.17258]
[1766706673326,0.00296112,2900.5,2899.3,3.83783799]
[1766706673727,0.00296112,2900.5,2899.0,0.00925586]
[1766706675824,0.17546112,2900.5,2899.0,0.00925586]
[1766706677019,0.00296112,2900.5,2899.0,0.00925586]
[1766706677523,0.00296112,2900.5,2899.1,3.62821405]
[1766706678023,0.00296112,2900.5,2899.1,6.7242247]
[1766706678932,0.00296112,2900.5,2899.2,4.871]
[1766706680423,0.00296112,2900.5,2899.3,3.88665862]
[1766706684029,3.455,2901.3,2899.3,4.05922862]
[1766706684916,3.45801292,2901.3,2899.3,4.05922862]
[1766706685121,0.00301292,2901.3,2899.3,4.05922862]
[1766706686935,0.00301292,2901.3,2899.4,4.883]
[1766706687826,0.00301292,2901.3,2899.4,5.05556]
[1766706688332,0.00301292,2901.3,2899.4,0.17256]
[1766706688633,0.17246,2901.2,2899.4,4.883]
[1766706690528,0.00301292,2901.3,2899.2,3.09601065]
[1766706690529,0.17246,2901.1,2899.2,3.09601065]
[1766706690732,1.3556764,2901.9,2899.2,3.09601065]
[1766706690733,1.21810335,2903.4,2900.0,1.3556764]
[1766706691035,0.17235,2903.1,2901.4,0.00517312]
[1766706691422,0.17235,2903.0,2901.4,0.00517312]
[1766706691627,0.17236,2902.9,2901.4,0.0087104]
[1766706691938,0.17237,2902.8,2901.4,0.0087104]
[1766706692122,0.17237,2902.7,2901.4,0.0087104]
[1766706692527,0.00301353,2903.0,2899.8,1.51680494]
[1766706692528,0.17239,2902.4,2900.4,1.544]
[1766706692728,0.00301353,2903.0,2900.3,4.416]
[1766706693025,0.1724,2902.2,2900.2,4.416]
[1766706693529,0.00517312,2901.5,2900.9,0.00517312]
[1766706695731,3.455,2902.8,2900.9,0.00517312]
[1766706695937,0.17536353,2903.0,2901.0,2.029]
[1766706696132,0.17236,2902.9,2900.9,0.00517312]
[1766706696947,0.00301353,2903.0,2900.9,0.00517312]
[1766706697236,0.17241,2902.1,2900.2,0.00251723]
[1766706697923,0.17243,2901.7,2900.2,0.00251723]
[1766706698322,0.00517312,2901.2,2900.7,0.00517312]
[1766706700339,3.455,2902.2,2900.7,0.00517312]
[1766706700535,0.17241,2902.1,2900.7,0.00517312]
[1766706701039,3.62736,2902.8,2900.7,0.00517312]
[1766706701230,0.17238,2902.6,2900.7,0.00517312]
[1766706701429,3.455,2902.8,2900.7,0.00517312]
[1766706701827,0.17239,2902.4,2900.7,0.00517312]
[1766706703933,3.455,2902.8,2900.7,0.00517312]
[1766706704529,0.17536353,2903.0,2900.7,0.00517312]
[1766706704730,0.17536353,2903.0,2900.8,0.17248]
[1766706705332,0.17536353,2903.0,2900.9,4.01768334]
[1766706705741,0.17536353,2903.0,2900.9,0.17248]
[1766706706039,0.17536353,2903.0,2901.0,3.84520334]
[1766706706239,0.17536353,2903.0,2901.0,4.01767334]
[1766706706442,0.00301353,2903.0,2901.2,0.17246]
[1766706706838,0.00301353,2903.0,2901.3,3.87087505]
[1766706707543,0.00301353,2903.0,2901.4,0.17244]
[1766706708338,0.00301353,2903.0,2901.6,0.17243]
[1766706708638,0.00301353,2903.0,2901.7,3.70250377]
[1766706709240,0.00301353,2903.0,2901.6,5.04843]
[1766706709439,0.00301353,2903.0,2901.7,0.17243]
[1766706709745,0.00301353,2903.0,2901.7,4.12006951]
[1766706710942,1.353e-05,2903.0,2901.7,4.12006951]
[1766706711954,0.17275562,2905.2,2902.5,0.17238]
[1766706712144,0.17224,2904.8,2901.8,7.97101065]
[1766706712344,0.17224,2904.8,2901.9,4.874]
[1766706712646,0.17224,2904.8,2902.3,3.71537641]
[1766706712849,0.34738134,2904.8,2902.0,5.04741]
[1766706713042,0.35137752,2904.8,2902.0,8.76590476]
[1766706713346,0.00399618,2904.8,2903.1,0.00517312]
[1766706713645,0.17275562,2905.2,2903.1,0.00517312]
[1766706713845,0.17275562,2905.2,2903.2,3.69637234]
[1766706714141,0.17216,2906.3,2903.2,3.69637234]
[1766706714142,0.17216,2906.3,2903.2,3.97539853]
[1766706714446,0.17514134,2905.8,2903.3,4.874]
[1766706714748,0.34734134,2905.6,2903.1,4.87917312]
[1766706715146,0.34734134,2905.6,2903.2,3.87705883]
[1766706715444,0.00288602,2905.8,2903.3,1.3556764]
[1766706715640,0.00288602,2905.8,2903.9,0.17229]
[1766706715846,0.00288602,2905.8,2904.6,0.00516413]
[1766706716047,0.00288602,2905.8,2904.6,0.00847236]
[1766706716547,0.003,2906.0,2904.7,3.77934643]
[1766706717341,1.3556764,2908.0,2904.7,3.77934643]
[1766706717342,0.17206,2907.9,2904.9,0.17224]
[1766706717547,0.00415466,2907.9,2906.1,0.00516413]
[1766706717750,1.35983106,2907.9,2906.1,0.00516413]
[1766706718138,0.1721,2907.2,2906.1,0.00516413]
[1766706718541,0.00415466,2907.9,2904.7,0.17225]
[1766706718542,0.17211,2907.1,2904.7,0.17225]
[1766706719037,0.17211,2907.1,2904.6,0.89230823]
[1766706719238,0.17211,2907.1,2904.6,0.00330823]
[1766706719437,0.00513415,2906.1,2905.6,0.00516413]
[1766706720949,0.00513415,2906.1,2904.6,0.00330823]
[1766706722241,0.00513415,2906.1,2905.1,0.00516413]
[1766706722639,0.17218,2906.0,2904.6,0.00330823]
[1766706722840,0.17218,2906.0,2904.6,8.23e-06]
[1766706723648,0.17218,2906.0,2905.0,0.00516413]
[1766706724445,0.00513415,2906.1,2905.0,0.00516413]
[1766706724950,0.17514134,2906.0,2905.0,0.00516413]